fUSD/lending_fUSD_20241227
["ID","MTS","AMOUNT","RATE_DAILY","PERIOD"]
[346874244,1735336267126,-500.0,0.00011835,2]
[346874245,1735336267136,-500.0,0.00011835,2]
[346874246,1735336267148,-500.0,0.00011835,2]
[346874247,1735336267158,-609.19,0.00011835,2]
[346874248,1735336267167,-805.68,0.00011835,2]
[346874249,1735336267177,-1051.26,0.00011835,2]
[346874250,1735336267187,-557.4,0.00011835,2]
[346874251,1735336267199,-791.28,0.00011835,2]
[346874252,1735336267209,-500.0,0.00011835,2]
[346874253,1735336267218,-1126.95,0.00011835,2]
[346874254,1735336267232,-731.1,0.00011835,2]
[346874255,1735336267242,-752.15,0.00011835,2]
[346874256,1735336267251,-500.0,0.00011835,2]
[346874257,1735336267260,-500.0,0.00011835,2]
[346874258,1735336267270,-1550.85,0.00011835,2]
[346874259,1735336267279,-601.57,0.00011835,2]
[346874260,1735336267290,-3335.88695601,0.00011835,2]
[346874261,1735336267302,-486.36386361,0.00011835,2]
[346874262,1735336267317,-2506.71483423,0.00011835,2]
[346874263,1735336267335,-495.23709628,0.00011835,2]
[346874264,1735336267347,-778.90724987,0.00011835,2]
[346874265,1735336267356,-690.9,0.00011835,2]
[346874266,1735336267367,-927.58,0.00011835,2]
[346874267,1735336267376,-799.923696,0.00011835,2]
[346874268,1735336267388,-1058.16,0.00011835,2]
[346874269,1735336267398,-638.13,0.00011835,2]
[346874270,1735336267407,-693.37187,0.00011835,2]
[346874271,1735336267416,-500.0,0.00011835,2]
[346874272,1735336267426,-1010.75,0.00011835,2]
[346874273,1735336267435,-391.18313084,0.00011835,2]
[346874274,1735336267452,-3389.58865634,0.00011835,2]
[346874275,1735336267464,-51.33821282,0.00011835,2]
[346874276,1735336267474,-559.24,0.00011835,2]
[346874277,1735336267483,-1002.16,0.00011835,2]
[346874278,1735336267493,-759.49,0.00011835,2]
[346874279,1735336267503,-93.29278738,0.00011835,2]
[346874280,1735336267515,-1428.82721262,0.00011835,2]
[346874281,1735336267524,-1655.0,0.00011835,2]
[346874282,1735336267534,-592.24,0.00011835,2]
[346874283,1735336267544,-660.86,0.00011835,2]
[346874284,1735336267553,-500.0,0.00011835,2]
[346874285,1735336267563,-599.88,0.00011835,2]
[346874286,1735336267572,-425.4016933,0.00011835,2]
[346874287,1735336267584,-2814.5883067,0.00011835,2]
[346874288,1735336267594,-3517.2,0.00011835,2]
[346874289,1735336267603,-500.0,0.00011835,2]
[346874290,1735336267613,-500.0,0.00011835,2]
[346874291,1735336267623,-935.57,0.00011835,2]
[346874292,1735336267633,-1678.05,0.00011835,2]
[346874293,1735336267644,-3183.31,0.00011835,2]
[346874294,1735336267653,-854.24,0.00011835,2]
[346874295,1735336267662,-4604.44263908,0.00011835,2]
[346874296,1735336267675,-461.26736092,0.00011835,2]
[346874297,1735336267684,-462.87404236,0.00011835,2]
[346874298,1735336267696,-1776.12595764,0.00011835,2]
[346874299,1735336267706,-525.3,0.00011835,2]
[346874300,1735336267715,-818.32,0.00011835,2]
[346874301,1735336267724,-957.86,0.00011835,2]
[346874302,1735336267733,-1701.48,0.00011835,2]
[346874303,1735336267743,-553.19896416,0.00011835,2]
[346874304,1735336267755,-62.24103584,0.00011835,2]
[346874305,1735336267764,-1122.53,0.00011835,2]
[346874306,1735336267774,-106.06418279,0.00011835,2]
[346874307,1735336267786,-749.16581721,0.00011835,2]
[346874308,1735336267795,-879.00845935,0.00011835,2]
[346874309,1735336268146,-162.50154065,0.00011835,2]
[346874310,1735336268156,-364.57617335,0.00011835,2]
[346874311,1735336268168,-1560.47382665,0.00011835,2]
[346874312,1735336268179,-4580.88,0.00011835,2]
[346874313,1735336268189,-530.09,0.00011835,2]
[346874314,1735336268199,-2926.65,0.00011835,2]
[346874315,1735336268209,-1652.43,0.00011835,2]
[346874316,1735336268219,-506.96,0.00011835,2]
[346874317,1735336268229,-606.93,0.00011835,2]
[346874318,1735336268238,-999.73,0.00011835,2]
[346874319,1735336268248,-821.05,0.00011835,2]
[346874320,1735336268258,-1089.79517336,0.00011835,2]
[346874321,1735336268270,-1272.34482664,0.00011835,2]
[346874322,1735336268280,-959.37010824,0.00011835,2]
[346874323,1735336268295,-454.75989176,0.00011835,2]
[346874324,1735336268305,-7044.73,0.00011835,2]
[346874325,1735336268315,-686.27,0.00011835,2]
[346874326,1735336268325,-500.0,0.00011835,2]
[346874327,1735336268335,-646.97,0.00011835,2]
[346874328,1735336268345,-500.0,0.00011835,2]
[346874329,1735336268355,-900.32,0.00011835,2]
[346874330,1735336268365,-2139.42,0.00011835,2]
[346874331,1735336268375,-619.54,0.00011835,2]
[346874332,1735336268385,-1232.83,0.00011835,2]
[346874333,1735336268395,-2506.77,0.00011835,2]
[346874334,1735336268406,-556.85,0.00011835,2]
[346874335,1735336268416,-500.0,0.00011835,2]
[346874336,1735336268425,-1405.35,0.00011835,2]
[346874337,1735336268435,-569.4,0.00011836,2]
[346874338,1735336268446,-906.66,0.00011836,2]
[346874339,1735336268456,-500.0,0.00011836,2]
[346874340,1735336268466,-1024.73,0.00011836,2]
[346874341,1735336268476,-598.13,0.00011836,2]
[346874342,1735336268486,-737.59,0.00011836,2]
[346874343,1735336268496,-985.21,0.00011836,2]
[346874344,1735336268506,-724.58,0.00011836,2]
[346874345,1735336268515,-567.32,0.00011836,2]
[346874346,1735336268527,-726.25,0.00011836,2]
[346874347,1735336268537,-615.69,0.00011836,2]
[346874348,1735336268547,-1708.12,0.00011836,2]
[346874349,1735336268556,-1184.29,0.00011836,2]
[346874350,1735336268565,-548.56,0.00011836,2]
[346874351,1735336268575,-1426.63,0.00011836,2]
[346874352,1735336268586,-553.77,0.00011836,2]
[346874353,1735336268596,-780.99,0.00011836,2]
[346874354,1735336268606,-776.14,0.00011836,2]
[346874355,1735336268615,-500.0,0.00011836,2]
[346874356,1735336268626,-1224.21,0.00011836,2]
[346874357,1735336268636,-520.15,0.00011836,2]
[346874358,1735336268645,-716.45,0.00011836,2]
[346874359,1735336268655,-13061.32010824,0.00011837,2]
[346874360,1735336268738,-10634.5999995,0.00011837,2]
[346874361,1735336268750,-3953.02007262,0.00011837,2]
[346874362,1735336268760,-620.78,0.00011837,2]
[346874363,1735336268770,-2041.8,0.00011837,2]
[346874364,1735336268779,-1627.58,0.00011837,2]
[346874365,1735336268788,-1382.57,0.00011837,2]
[346874366,1735336268798,-3200.02,0.00011837,2]
[346874367,1735336268807,-510.79,0.00011837,2]
[346874368,1735336268817,-1065.28,0.00011837,2]
[346874369,1735336268827,-1200.97,0.00011837,2]
[346874370,1735336268836,-868.67,0.00011837,2]
[346874371,1735336268845,-3048.93,0.00011837,2]
[346874372,1735336268855,-2042.82,0.00011837,2]
[346874373,1735336268864,-16485.84948484,0.0001188,2]
[346874374,1735336268875,-986.52863358,0.0001188,2]
[346874375,1735336268886,-142442.99266922,0.0001188,2]
[346874376,1735336268896,-300.0,0.000119,4]
[346874377,1735336268906,-638.96087451,0.00011907,2]
[346874378,1735336268915,-500.0,0.00011972,2]
[346874379,1735336268925,-700.0,0.00011972,2]
[346874380,1735336268934,-2000.0,0.00011972,2]
[346874381,1735336268944,-500.0,0.00011999,2]
[346874382,1735336268953,-10000.0,0.00012,2]
[346874383,1735336268963,-73656.0,0.00012,2]
[346874384,1735336268972,-3113.19172255,0.00012,2]
[346874385,1735336268982,-87970.0,0.00012,3]
[346874386,1735336268991,-1000.0,0.00012,2]
[346874387,1735336269001,-637.65499894,0.00012,2]
[346874388,1735336269010,-8164.0,0.00012,2]
[346874389,1735336269019,-77057.30059891,0.00012,2]
[346874390,1735336269029,-413.79,0.00012043,2]
[346874391,1735336269038,-207.0,0.00012059,2]
[346874392,1735336269048,-208.99,0.00012059,2]
[346874393,1735336269059,-260.0,0.0001208,2]
[346874394,1735336269116,-5562.0,0.000121,3]
[346874395,1735336269126,-513.86,0.00012108,2]
[346874396,1735336269136,-500.0,0.00012108,2]
[346874397,1735336269148,-500.0,0.00012108,2]
[346874398,1735336269159,-500.0,0.00012108,2]
[346874399,1735336269168,-500.0,0.00012108,2]
[346874400,1735336269178,-500.0,0.00012108,2]
[346874401,1735336269188,-523.19,0.00012108,2]
[346874402,1735336269198,-500.0,0.00012108,2]
[346874403,1735336269207,-517.22,0.00012108,2]
[346874404,1735336269216,-500.0,0.00012108,2]
[346874405,1735336269227,-500.0,0.00012108,2]
[346874406,1735336269237,-500.0,0.00012108,2]
[346874407,1735336269246,-500.0,0.00012108,2]
[346874408,1735336269255,-500.0,0.00012108,2]
[346874409,1735336269266,-641.74,0.00012108,2]
[346874410,1735336269275,-524.58,0.00012108,2]
[346874411,1735336269284,-500.0,0.00012108,2]
[346874412,1735336269294,-500.0,0.00012108,2]
[346874413,1735336269303,-500.0,0.00012108,2]
[346874414,1735336269313,-777.86,0.00012108,2]
[346874415,1735336269322,-500.0,0.00012108,2]
[346874416,1735336269332,-656.88,0.00012108,2]
[346874417,1735336269341,-500.0,0.00012108,2]
[346874418,1735336269350,-379.11353284,0.00012108,2]
[346874419,1735336269360,-500.0,0.00012108,2]
[346874420,1735336269369,-500.0,0.00012108,2]
[346874421,1735336269379,-500.0,0.00012108,2]
[346874422,1735336269390,-500.0,0.00012108,2]
[346874423,1735336269399,-500.0,0.00012108,2]
[346874424,1735336269408,-500.0,0.00012108,2]
[346874425,1735336269418,-500.0,0.00012108,2]
[346874426,1735336269427,-500.0,0.00012108,2]
[346874427,1735336269437,-500.0,0.00012108,2]
[346874428,1735336269447,-500.0,0.00012108,2]
[346874429,1735336269456,-500.0,0.00012108,2]
[346874430,1735336269466,-500.0,0.00012108,2]
[346874431,1735336269476,-628.28,0.00012108,2]
[346874432,1735336269485,-500.0,0.00012108,2]
[346874433,1735336269494,-500.0,0.00012108,2]
[346874434,1735336269503,-500.0,0.00012108,2]
[346874435,1735336269512,-500.0,0.00012108,2]
[346874436,1735336269522,-500.0,0.00012108,2]
[346874437,1735336269531,-643.04,0.00012108,2]
[346874438,1735336269540,-500.0,0.00012108,2]
[346874439,1735336269549,-500.0,0.00012108,2]
[346874440,1735336269558,-500.0,0.00012108,2]
[346874441,1735336269567,-500.0,0.00012108,2]
[346874442,1735336269576,-739.17,0.00012108,2]
[346874443,1735336269586,-504.48,0.00012108,2]
[346874444,1735336269595,-500.0,0.00012108,2]
[346874445,1735336269604,-500.0,0.00012108,2]
[346874446,1735336269613,-500.0,0.00012108,2]
[346874447,1735336269623,-647.03,0.00012108,2]
[346874448,1735336269632,-1024.8,0.00012108,2]
[346874449,1735336269643,-500.0,0.00012108,2]
[346874450,1735336269652,-500.0,0.00012108,2]
[346874451,1735336269661,-500.0,0.00012108,2]
[346874452,1735336269670,-500.0,0.00012108,2]
[346874453,1735336269679,-884.78,0.00012108,2]
[346874454,1735336269688,-500.0,0.00012108,2]
[346874455,1735336269698,-534.19,0.00012108,2]
[346874456,1735336269708,-500.0,0.00012108,2]
[346874457,1735336269717,-619.0,0.00012108,2]
[346874458,1735336269726,-642.43,0.00012108,2]
[346874459,1735336269735,-647.9,0.00012108,2]
[346874460,1735336269744,-529.8,0.00012108,2]
[346874461,1735336269753,-619.96,0.00012108,2]
[346874462,1735336269762,-500.0,0.00012108,2]
[346874463,1735336269772,-697.56,0.00012108,2]
[346874464,1735336269781,-500.0,0.00012108,2]
[346874465,1735336269791,-500.0,0.00012108,2]
[346874466,1735336269800,-644.16,0.00012108,2]
[346874467,1735336269809,-851.46,0.00012108,2]
[346874468,1735336269819,-657.13,0.00012108,2]
[346874469,1735336269828,-500.0,0.00012108,2]
[346874470,1735336269837,-500.0,0.00012108,2]
[346874471,1735336269847,-519.03,0.00012108,2]
[346874472,1735336269856,-500.0,0.00012108,2]
[346874473,1735336269866,-500.0,0.00012108,2]
[346874474,1735336269875,-500.0,0.00012108,2]
[346874475,1735336269885,-500.0,0.00012108,2]
[346874476,1735336269895,-500.0,0.00012108,2]
[346874477,1735336269904,-603.78,0.00012108,2]
[346874478,1735336269914,-901.23,0.00012108,2]
[346874479,1735336269924,-500.0,0.00012108,2]
[346874480,1735336269934,-500.0,0.00012108,2]
[346874481,1735336269943,-640.42,0.00012108,2]
[346874482,1735336269952,-562.23,0.00012108,2]
[346874483,1735336269962,-500.0,0.00012108,2]
[346874484,1735336269971,-500.0,0.00012108,2]
[346874485,1735336269980,-500.0,0.00012108,2]
[346874486,1735336269990,-500.0,0.00012108,2]
[346874487,1735336269999,-500.0,0.00012108,2]
[346874488,1735336270009,-814.14,0.00012108,2]
[346874489,1735336270019,-500.0,0.00012108,2]
[346874490,1735336270028,-730.18,0.00012108,2]
[346874491,1735336270037,-500.0,0.00012108,2]
[346874492,1735336270046,-500.0,0.00012108,2]
[346874493,1735336270056,-500.0,0.00012108,2]
[346874494,1735336270066,-500.0,0.00012108,2]
[346874495,1735336270075,-688.13,0.00012108,2]
[346874496,1735336270085,-960.67,0.00012108,2]
[346874497,1735336270094,-625.0,0.00012108,2]
[346874498,1735336270103,-500.0,0.00012108,2]
[346874499,1735336270113,-500.0,0.00012108,2]
[346874500,1735336270123,-500.0,0.00012108,2]
[346874501,1735336270132,-500.0,0.00012108,2]
[346874502,1735336270142,-500.0,0.00012108,2]
[346874503,1735336270154,-537.8,0.00012108,2]
[346874504,1735336270163,-500.0,0.00012108,2]
[346874505,1735336270173,-809.76,0.00012108,2]
[346874506,1735336270186,-500.0,0.00012108,2]
[346874507,1735336270204,-500.0,0.00012108,2]
[346874508,1735336270215,-500.0,0.00012108,2]
[346874509,1735336270227,-500.0,0.00012108,2]
[346874510,1735336270241,-500.0,0.00012108,2]
[346874511,1735336270254,-500.0,0.00012108,2]
[346874512,1735336270266,-526.65,0.00012108,2]
[346874513,1735336270277,-500.0,0.00012108,2]
[346874514,1735336270288,-1333.41,0.00012108,2]
[346874515,1735336270297,-500.0,0.00012108,2]
[346874516,1735336270307,-500.0,0.00012108,2]
[346874517,1735336270316,-572.12,0.00012108,2]
[346874518,1735336270326,-500.0,0.00012108,2]
[346874519,1735336270335,-852.62,0.00012108,2]
[346874520,1735336270344,-500.0,0.00012108,2]
[346874521,1735336270354,-500.0,0.00012108,2]
[346874522,1735336270363,-669.16,0.00012108,2]
[346874523,1735336270373,-500.0,0.00012108,2]
[346874524,1735336270383,-500.0,0.00012108,2]
[346874525,1735336270393,-1530.35,0.00012108,2]
[346874526,1735336270403,-1249.53,0.00012108,2]
[346874527,1735336270412,-500.0,0.00012108,2]
[346874528,1735336270422,-500.0,0.00012108,2]
[346874529,1735336270432,-500.0,0.00012108,2]
[346874530,1735336270442,-247.55670286,0.00012108,2]
[346874531,1735336270451,-1010.19,0.00012108,2]
[346874532,1735336270460,-500.0,0.00012108,2]
[346874533,1735336270470,-899.21,0.00012108,2]
[346874534,1735336270479,-1395.55,0.00012108,2]
[346874535,1735336270489,-321.15271174,0.00012108,2]
[346874536,1735336270499,-955.53,0.00012108,2]
[346874537,1735336270508,-500.0,0.00012108,2]
[346874538,1735336270517,-675.8,0.00012108,2]
[346874539,1735336270527,-1659.52,0.00012108,2]
[346874540,1735336270537,-500.0,0.00012108,2]
[346874541,1735336270547,-500.0,0.00012108,2]
[346874542,1735336270556,-500.0,0.00012108,2]
[346874543,1735336270566,-565.96,0.00012108,2]
[346874544,1735336270575,-2114.0,0.00012108,2]
[346874545,1735336270585,-10774.56,0.00012108,2]
[346874546,1735336270594,-500.0,0.00012108,2]
[346874547,1735336270603,-1052.06,0.00012108,2]
[346874548,1735336270613,-500.0,0.00012108,2]
[346874549,1735336270623,-500.0,0.00012108,2]
[346874550,1735336270632,-182.11,0.00012108,2]
[346874551,1735336270643,-602.1,0.00012108,2]
[346874552,1735336270652,-592.67,0.00012108,2]
[346874553,1735336270663,-500.0,0.00012108,2]
[346874554,1735336270672,-500.0,0.00012108,2]
[346874555,1735336270682,-500.0,0.00012108,2]
[346874556,1735336270693,-500.0,0.00012108,2]
[346874557,1735336270703,-1880.76,0.00012108,2]
[346874558,1735336270712,-1083.23,0.00012108,2]
[346874559,1735336270722,-541.17,0.00012108,2]
[346874560,1735336270731,-1792.16,0.00012108,2]
[346874561,1735336270741,-1044.48,0.00012108,2]
[346874562,1735336270751,-500.0,0.00012108,2]
[346874563,1735336270760,-500.0,0.00012108,2]
[346874564,1735336270771,-518.59,0.00012108,2]
[346874565,1735336270780,-5794.82,0.00012108,2]
[346874566,1735336270790,-500.0,0.00012108,2]
[346874567,1735336270800,-500.0,0.00012108,2]
[346874568,1735336270809,-922.22,0.00012108,2]
[346874569,1735336270819,-1317.36,0.00012108,2]
[346874570,1735336270829,-1665.0,0.00012108,2]
[346874571,1735336270839,-500.0,0.00012108,2]
[346874572,1735336270848,-868.91,0.00012108,2]
[346874573,1735336270858,-564.22,0.00012108,2]
[346874574,1735336270869,-2374.65,0.00012108,2]
[346874575,1735336270879,-511.85,0.00012108,2]
[346874576,1735336270888,-619.78,0.00012108,2]
[346874577,1735336270898,-1805.44,0.00012108,2]
[346874578,1735336270907,-3221.16,0.00012108,2]
[346874579,1735336270916,-500.0,0.00012108,2]
[346874580,1735336270926,-1146.64,0.00012108,2]
[346874581,1735336270936,-636.93124324,0.00012108,2]
[346874582,1735336270945,-524.2,0.00012108,2]
[346874583,1735336270955,-500.0,0.00012108,2]
[346874584,1735336270965,-500.0,0.00012108,2]
[346874585,1735336270974,-2159.25,0.00012108,2]
[346874586,1735336270983,-506.33,0.00012108,2]
[346874587,1735336270993,-4157.24,0.00012108,2]
[346874588,1735336271002,-549.19,0.00012108,2]
[346874589,1735336271011,-2208.58,0.00012108,2]
[346874590,1735336271021,-500.0,0.00012108,2]
[346874591,1735336271030,-500.0,0.00012108,2]
[346874592,1735336271040,-4287.51,0.00012108,2]
[346874593,1735336271049,-500.0,0.00012108,2]
[346874594,1735336271059,-818.86,0.00012108,2]
[346874595,1735336271068,-680.75,0.00012108,2]
[346874596,1735336271078,-987.63,0.00012108,2]
[346874597,1735336271087,-500.0,0.00012108,2]
[346874598,1735336271096,-686.54,0.00012108,2]
[346874599,1735336271106,-510.42,0.00012108,2]
[346874600,1735336271115,-1280.58,0.00012108,2]
[346874601,1735336271124,-500.0,0.00012108,2]
[346874602,1735336271134,-715.73,0.00012108,2]
[346874603,1735336271145,-2173.54,0.00012108,2]
[346874604,1735336271155,-675.24,0.00012108,2]
[346874605,1735336271166,-19975.91,0.00012108,2]
[346874606,1735336271175,-500.0,0.00012108,2]
[346874607,1735336271184,-500.0,0.00012108,2]
[346874608,1735336271196,-518.2,0.00012108,2]
[346874609,1735336271205,-715.3,0.00012108,2]
[346874610,1735336271216,-1718.84,0.00012108,2]
[346874611,1735336271228,-1645.79,0.00012108,2]
[346874612,1735336271238,-500.0,0.00012108,2]
[346874613,1735336271248,-500.0,0.00012108,2]
[346874614,1735336271258,-919.56,0.00012108,2]
[346874615,1735336271268,-698.98,0.00012109,2]
[346874616,1735336271277,-1447.35,0.00012109,2]
[346874617,1735336271287,-1135.24,0.00012109,2]
[346874618,1735336271296,-500.0,0.00012109,2]
[346874619,1735336271305,-500.0,0.00012109,2]
[346874620,1735336271315,-1446.45,0.00012109,2]
[346874621,1735336271324,-522.04,0.00012109,2]
[346874622,1735336271334,-715.08,0.00012109,2]
[346874623,1735336271343,-1586.47,0.00012109,2]
[346874624,1735336271353,-760.44,0.00012109,2]
[346874625,1735336271362,-1348.14,0.00012109,2]
[346874626,1735336271371,-2379.61,0.00012109,2]
[346874627,1735336271381,-1539.31,0.00012109,2]
[346874628,1735336271391,-6514.22,0.00012109,2]
[346874629,1735336271400,-4583.19,0.00012109,2]
[346874630,1735336271410,-601.41,0.00012109,2]
[346874631,1735336271419,-588.01,0.00012109,2]
[346874632,1735336271430,-521.44,0.00012109,2]
[346874633,1735336271440,-500.0,0.00012109,2]
[346874634,1735336271450,-584.63,0.00012109,2]
[346874635,1735336271460,-500.0,0.00012109,2]
[346874636,1735336271469,-1892.34,0.00012109,2]
[346874637,1735336271478,-610.67,0.00012109,2]
[346874638,1735336271488,-500.0,0.00012109,2]
[346874639,1735336271497,-500.0,0.00012109,2]
[346874640,1735336271507,-507.02,0.00012109,2]
[346874641,1735336271516,-500.0,0.00012109,2]
[346874642,1735336271526,-9987.57,0.00012109,2]
[346874643,1735336271535,-500.0,0.00012109,2]
[346874644,1735336271544,-500.0,0.00012109,2]
[346874645,1735336271553,-633.36,0.00012109,2]
[346874646,1735336271562,-500.0,0.00012109,2]
[346874647,1735336271572,-500.0,0.00012109,2]
[346874648,1735336271581,-500.0,0.00012109,2]
[346874649,1735336271590,-500.0,0.00012109,2]
[346874650,1735336271599,-694.31,0.00012109,2]
[346874651,1735336271609,-500.0,0.00012109,2]
[346874652,1735336271619,-681.38,0.00012109,2]
[346874653,1735336271629,-500.0,0.00012109,2]
[346874654,1735336271639,-500.0,0.00012109,2]
[346874655,1735336271649,-500.0,0.00012109,2]
[346874656,1735336271661,-765.4,0.00012109,2]
[346874657,1735336271670,-500.0,0.00012109,2]
[346874658,1735336271680,-803.37,0.00012109,2]
[346874659,1735336271690,-500.0,0.00012109,2]
[346874660,1735336271699,-502.16,0.00012109,2]
[346874661,1735336271708,-500.0,0.00012109,2]
[346874662,1735336271718,-732.69,0.00012109,2]
[346874663,1735336271727,-500.0,0.00012109,2]
[346874664,1735336271736,-500.0,0.00012109,2]
[346874665,1735336271745,-659.83,0.00012109,2]
[346874666,1735336271754,-500.0,0.00012109,2]
[346874667,1735336271764,-1366.87,0.00012109,2]
[346874668,1735336271773,-500.0,0.00012109,2]
[346874669,1735336271782,-595.6,0.00012109,2]
[346874670,1735336271791,-500.0,0.00012109,2]
[346874671,1735336271800,-589.5146992,0.00012109,2]
[346874672,1735336271809,-500.0,0.00012109,2]
[346874673,1735336271819,-609.19,0.00012109,2]
[346874674,1735336271828,-805.68,0.00012109,2]
[346874675,1735336271837,-1051.26,0.00012109,2]
[346874676,1735336271847,-557.4,0.00012109,2]
[346874677,1735336271858,-791.28,0.00012109,2]
[346874678,1735336271868,-500.0,0.00012109,2]
[346874679,1735336271878,-1126.95,0.00012109,2]
[346874680,1735336271889,-731.1,0.00012109,2]
[346874681,1735336271898,-752.15,0.00012109,2]
[346874682,1735336271907,-500.0,0.00012109,2]
[346874683,1735336271919,-500.0,0.00012109,2]
[346874684,1735336271928,-1550.85,0.00012109,2]
[346874685,1735336271938,-601.57,0.00012109,2]
[346874686,1735336271947,-7603.11,0.00012109,2]
[346874687,1735336271957,-690.9,0.00012109,2]
[346874688,1735336271966,-927.58,0.00012109,2]
[346874689,1735336271975,-1058.16,0.00012109,2]
[346874690,1735336271984,-638.13,0.00012109,2]
[346874691,1735336271993,-693.37187,0.00012109,2]
[346874692,1735336272002,-500.0,0.00012109,2]
[346874693,1735336272012,-1010.75,0.00012109,2]
[346874694,1735336272021,-3832.11,0.00012109,2]
[346874695,1735336272030,-559.24,0.00012109,2]
[346874696,1735336272039,-1002.16,0.00012109,2]
[346874697,1735336272048,-759.49,0.00012109,2]
[346874698,1735336272057,-1655.0,0.00012109,2]
[346874699,1735336272068,-1522.12,0.00012109,2]
[346874700,1735336272077,-592.24,0.00012109,2]
[346874701,1735336272087,-660.86,0.00012109,2]
[346874702,1735336272096,-500.0,0.00012109,2]
[346874703,1735336272105,-599.88,0.00012109,2]
[346874704,1735336272115,-3239.99,0.00012109,2]
[346874705,1735336272125,-3517.2,0.00012109,2]
[346874706,1735336272135,-513.56524065,0.00012109,2]
[346874707,1735336272148,-935.57,0.00012109,2]
[346874708,1735336272157,-500.0,0.00012109,2]
[346874709,1735336272167,-1678.05,0.00012109,2]
[346874710,1735336272177,-3183.31,0.00012109,2]
[346874711,1735336272187,-854.24,0.00012109,2]
[346874712,1735336272196,-5065.71,0.00012109,2]
[346874713,1735336272206,-2239.0,0.00012109,2]
[346874714,1735336272216,-525.3,0.00012109,2]
[346874715,1735336272225,-818.32,0.00012109,2]
[346874716,1735336272236,-957.86,0.00012109,2]
[346874717,1735336272245,-615.44,0.00012109,2]
[346874718,1735336272254,-1701.48,0.00012109,2]
[346874719,1735336272264,-1122.53,0.00012109,2]
[346874720,1735336272273,-855.23,0.00012109,2]
[346874721,1735336272283,-1041.51,0.00012109,2]
[346874722,1735336272292,-1925.05,0.00012109,2]
[346874723,1735336272301,-4580.88,0.00012109,2]
[346874724,1735336272311,-530.09,0.00012109,2]
[346874725,1735336272320,-2926.65,0.00012109,2]
[346874726,1735336272330,-1652.43,0.00012109,2]
[346874727,1735336272339,-506.96,0.00012109,2]
[346874728,1735336272348,-606.93,0.00012109,2]
[346874729,1735336272358,-999.73,0.00012109,2]
[346874730,1735336272368,-821.05,0.00012109,2]
[346874731,1735336272377,-2362.14,0.00012109,2]
[346874732,1735336272387,-1414.13,0.00012109,2]
[346874733,1735336272396,-7044.73,0.00012109,2]
[346874734,1735336272406,-686.27,0.00012109,2]
[346874735,1735336272415,-500.0,0.00012109,2]
[346874736,1735336272424,-646.97,0.00012109,2]
[346874737,1735336272434,-500.0,0.00012109,2]
[346874738,1735336272444,-900.32,0.00012109,2]
[346874739,1735336272453,-2139.42,0.00012109,2]
[346874740,1735336272463,-619.54,0.00012109,2]
[346874741,1735336272472,-1232.83,0.00012109,2]
[346874742,1735336272481,-2506.77,0.00012109,2]
[346874743,1735336272490,-556.85,0.00012109,2]